bitfinex/quotes_ETHUSD_20250511
["timestamp","ask_amount","ask_price","bid_price","bid_amount"]
[1747002929373,3.99910007,2500.6,2500.4,1.22]
[1747002930337,3.99952005,2500.3,2500.2,0.7739]
[1747002930541,3.99952005,2500.3,2500.1,0.05]
[1747002930842,3.99968002,2500.2,2500.1,0.05]
[1747002931984,3.99921823,2500.5,2500.4,8.0]
[1747002932283,3.99968002,2500.2,2500.1,0.27815315]
[1747002932490,3.99959932,2500.3,2500.1,0.05]
[1747002932689,3.99959932,2500.3,2500.1,0.27815315]
[1747002932896,3.99959932,2500.3,2500.1,0.05]
[1747002933202,3.99959932,2500.3,2500.2,0.22815315]
[1747002933352,3.99968002,2500.2,2500.1,0.05]
[1747002933548,3.99894089,2500.7,2500.2,0.22815315]
[1747002933748,0.7991,2500.9,2500.2,0.7805]
[1747002933990,3.99962124,2500.3,2500.1,0.05]
[1747002934699,6.79677372,2500.2,2500.1,0.05]
[1747002934855,3.99968002,2500.2,2500.1,0.05]
[1747002937403,9.51668002,2500.2,2500.1,0.05]
[1747002937758,13.522533,2500.2,2500.1,0.05]
[1747002938667,13.73036874,2500.2,2500.1,0.05]
[1747002938861,13.95101514,2500.2,2500.1,0.05]
[1747002939764,13.95101514,2500.2,2499.1,0.05]
[1747002939765,4.0012804,2499.2,2499.1,0.05]
[1747002941056,4.0012804,2499.2,2499.1,0.26581024]
[1747002941359,4.0012804,2499.2,2499.1,0.05]
[1747002941515,4.0012804,2499.2,2499.1,0.26581024]
[1747002941716,4.0012804,2499.2,2499.1,0.05]
[1747002941916,4.0012804,2499.2,2499.1,0.26581024]
[1747002942846,4.0012804,2499.2,2499.1,0.05]
[1747002943034,0.7614,2499.6,2499.1,1.03241024]
[1747002943436,4.00088362,2499.5,2499.1,1.03241024]
[1747002943654,4.00064574,2499.6,2499.1,1.03241024]
[1747002944056,4.00054263,2499.7,2499.1,1.03241024]
[1747002944353,4.0008018,2499.5,2499.1,1.03241024]
[1747002944553,4.00072213,2499.6,2499.1,1.03241024]
[1747002944714,4.00035496,2499.8,2499.1,1.03241024]
[1747002945116,3.99976719,2500.2,2500.0,8.0]
[1747002945345,2.70265298,2500.4,2499.5,0.8149]
[1747002945544,2.70265298,2500.4,2500.1,0.21786195]
[1747002945757,4.00051845,2499.7,2499.5,0.8149]
[1747002946122,4.00051845,2499.7,2499.6,0.21786195]
[1747002947329,4.77941845,2499.7,2499.6,0.21786195]
[1747002947532,4.0012804,2499.2,2499.1,0.05]
[1747002947877,13.54983338,2499.2,2499.1,0.26664952]
[1747002948093,4.00160064,2499.0,2498.9,0.0010703]
[1747002948248,4.00288207,2498.2,2498.1,0.05]
[1747002948452,13.01443505,2498.2,2498.1,0.05]
[1747002948974,4.00448502,2497.2,2496.9,0.777]
[1747002949182,6.707138,2497.2,2496.5,0.821]
[1747002949346,6.707138,2497.2,2497.1,0.25797596]
[1747002949551,4.00416433,2497.4,2497.3,8.0]
[1747002949754,4.00448502,2497.2,2497.1,0.05]
[1747002950977,10.29448502,2497.2,2497.1,0.05]
[1747002951281,13.65011854,2497.2,2497.1,0.05]
[1747002952377,8.13311854,2497.2,2497.1,0.05]
[1747002952687,4.00390381,2497.6,2497.1,0.05]
[1747002952896,0.8017,2497.9,2497.1,0.05]
[1747002953181,2.761,2498.1,2497.2,0.8161]
[1747002953382,4.0032947,2498.0,2497.2,0.8161]
[1747002953588,4.00382622,2497.7,2497.3,8.0]
[1747002953767,2.761,2498.1,2497.3,9.16241]
[1747002953971,2.761,2498.1,2497.3,1.16241]
[1747002954274,4.00368338,2497.7,2497.1,0.05]
[1747002954475,4.00406403,2497.5,2497.1,0.05]
[1747002954683,2.80563352,2498.1,2497.1,0.05]
[1747002954877,2.761,2498.0,2497.1,0.05]
[1747002955079,14.396,2498.3,2497.2,0.8182]
[1747002955281,2.761,2498.4,2497.3,0.8182]
[1747002955488,4.00289204,2498.2,2497.4,4.45246143]
[1747002955698,4.00355145,2497.8,2497.5,8.0]
[1747002955896,5.56663352,2498.4,2497.5,8.0]
[1747002956392,4.00275783,2498.3,2497.5,8.0]
[1747002956594,9.56922506,2498.4,2497.5,8.0]
[1747002956891,4.00298829,2498.2,2497.5,9.22392069]
[1747002957105,2.80563352,2498.4,2497.5,9.22392069]
[1747002957266,4.00206948,2498.8,2497.6,0.85293439]
[1747002957594,4.00186845,2498.9,2497.9,0.8129]
[1747002957923,4.00176077,2498.9,2498.1,8.0]
[1747002958046,4.00255174,2498.5,2498.1,8.0]
[1747002958249,4.00261885,2498.4,2498.1,8.0]
[1747002958548,9.56630539,2499.0,2498.1,8.0]
[1747002958883,4.00280932,2498.3,2498.1,8.0]
[1747002959045,4.00288207,2498.2,2498.1,8.0]
[1747002959482,0.7601,2498.6,2498.1,8.0]
[1747002959483,4.00285951,2498.3,2498.1,8.0]
[1747002959683,4.00288207,2498.2,2498.1,8.0]
[1747002959890,4.00272185,2498.3,2498.2,0.22373278]
[1747002960185,8.18365537,2498.3,2498.2,0.22373278]
[1747002960500,0.81,2497.7,2496.9,0.7848]
[1747002960693,4.00448502,2497.2,2496.9,0.7848]
[1747002960862,4.00448502,2497.2,2496.6,0.7848]
[1747002961444,0.81,2497.7,2497.1,0.25509111]
[1747002961801,4.00114887,2497.9,2497.2,0.7541]
[1747002961957,2.759,2498.3,2497.2,0.79414158]
[1747002962161,4.00291952,2498.2,2497.4,0.7727]
[1747002962363,4.00318942,2498.1,2497.4,0.7727]
[1747002962557,2.80563352,2498.3,2497.5,0.20481122]
[1747002962771,4.00379294,2497.7,2497.5,0.20481122]
[1747002962978,4.00287788,2498.3,2497.5,0.20481122]
[1747002963164,6.33023352,2498.6,2497.5,0.20481122]
[1747002963368,2.759,2498.7,2497.6,11.62783678]
[1747002963588,4.00217977,2498.7,2497.8,0.7944]
[1747002963787,6.76056597,2499.1,2497.8,0.83442859]
[1747002963946,4.00179757,2498.9,2497.8,0.83442859]
[1747002964153,4.00286083,2498.3,2497.8,0.7944]
[1747002964351,4.00286083,2498.3,2497.9,0.18416705]
[1747002964562,4.00304231,2498.1,2497.8,0.7944]
[1747002964789,4.00326815,2498.0,2497.8,0.7944]
[1747002965005,4.00326815,2498.0,2497.9,0.18272381]
[1747002965548,4.00341891,2497.9,2497.6,8.0]
[1747002966661,4.00352516,2497.8,2497.6,8.0]
[1747002966872,4.00373782,2497.7,2497.6,8.0]
[1747002967069,4.0026922,2498.4,2497.7,3.309631]
[1747002967272,0.7709,2498.7,2497.7,3.309631]
[1747002967273,0.7709,2498.7,2497.7,0.8291]
[1747002967476,2.759,2498.8,2497.7,0.86913627]
[1747002967770,4.00260125,2498.4,2497.8,2.772]
[1747002967975,4.0024582,2498.5,2497.8,4.05182663]
[1747002968222,4.00194298,2498.8,2497.9,0.79983096]
[1747002968428,4.00225399,2498.6,2497.9,0.79983096]
[1747002968608,4.00209757,2498.7,2498.1,0.7598]
[1747002968915,4.00253621,2498.5,2498.1,0.7598]
[1747002969126,4.00240982,2498.5,2498.1,0.7598]
[1747002969337,4.00261982,2498.4,2498.1,0.7598]
[1747002969675,4.00276212,2498.3,2498.1,0.7598]
[1747002969876,4.00288207,2498.2,2498.1,0.7598]
[1747002970092,4.00352351,2497.8,2497.6,2.768]
[1747002970379,4.00272185,2498.3,2497.6,2.768]
[1747002970585,4.00368338,2497.7,2497.6,2.768]
[1747002971210,4.00384368,2497.6,2497.5,8.0]
[1747002971516,4.00384368,2497.6,2497.4,3.5631]
[1747002971730,4.00322238,2498.0,2497.0,14.404]
[1747002971731,4.00417104,2497.4,2497.1,0.8831]
[1747002971933,4.00448382,2497.3,2497.1,0.05]
[1747002972220,4.00448502,2497.2,2497.1,0.05]
[1747002972372,4.00448502,2497.2,2497.1,8.05]
[1747002972772,4.00424297,2497.4,2497.1,8.05]
[1747002972978,4.0035231,2497.8,2497.1,8.05]
[1747002973212,0.8144,2497.9,2497.1,8.05]
[1747002973415,4.00395292,2497.6,2497.2,0.7636]
[1747002973618,4.00395292,2497.6,2497.4,8.0]
[1747002973778,4.00320256,2498.0,2497.2,0.7636]
[1747002973779,6.80883608,2498.0,2497.2,0.7636]
[1747002974191,4.0042423,2497.4,2497.2,0.7636]
[1747002974413,4.00407486,2497.5,2497.4,3.3774]
[1747002974615,4.00368673,2497.7,2497.2,0.7636]
[1747002974814,4.00368673,2497.7,2497.2,1.92186]
[1747002975016,4.0035047,2497.9,2497.2,1.92186]
[1747002975183,4.00288207,2498.2,2497.3,0.15312334]
[1747002975382,4.00304231,2498.1,2497.3,0.15312334]
[1747002975687,4.00416433,2497.4,2497.3,0.15312334]
[1747002975884,4.00432467,2497.3,2497.1,0.05]
[1747002976085,4.00448502,2497.2,2497.1,0.05]
[1747002976401,5.34368502,2497.2,2497.1,0.05]
[1747002976599,4.79368502,2497.2,2497.1,0.05]
[1747002976930,4.00448502,2497.2,2497.1,0.05]
[1747002977436,4.00439641,2497.3,2497.1,0.05]
[1747002977727,4.00402106,2497.5,2497.1,0.05]
[1747002977893,4.00448502,2497.2,2497.1,0.05]
[1747002978225,4.00432517,2497.3,2497.1,0.05]
[1747002978394,0.20756555,2498.0,2497.2,0.8214]
[1747002978588,0.8286,2498.1,2497.2,0.8214]
[1747002978783,4.00320256,2498.0,2497.2,0.8214]
[1747002979009,4.00353977,2497.8,2497.2,0.8214]
[1747002979214,4.00380792,2497.7,2497.2,0.8214]
[1747002979419,4.00353833,2497.8,2497.2,0.8214]
[1747002980002,4.00426326,2497.4,2497.2,1.03454418]
[1747002980326,4.00432467,2497.3,2497.1,0.05]
[1747002980695,4.00448502,2497.2,2497.1,0.05]
[1747002981185,4.00426154,2497.4,2497.1,0.05]
[1747002981587,4.00405251,2497.5,2497.1,0.05]
[1747002981932,0.8031,2498.2,2497.6,8.0]
[1747002982086,4.00306851,2498.1,2497.6,8.0]
[1747002982288,4.00306851,2498.1,2497.7,0.8166]
[1747002982621,4.00271617,2498.4,2497.7,1.97576]
[1747002982798,7.5905328,2499.1,2497.9,8.0]
[1747002983001,0.22114297,2499.0,2498.1,8.8012]
[1747002983195,0.22114297,2499.0,2498.3,8.0]
[1747002983196,4.00184173,2498.9,2498.3,8.0]
[1747002983408,4.00176077,2498.9,2498.3,8.0]
[1747002983617,4.00217178,2498.7,2498.2,4.06402265]
[1747002983790,4.00201221,2498.8,2498.3,8.0]
[1747002983988,4.00201221,2498.8,2498.3,9.40852227]
[1747002984620,4.00232942,2498.6,2498.3,9.40852227]
[1747002984826,4.00125419,2499.3,2498.7,8.0]
[1747002985126,4.00192092,2498.8,2498.7,0.7804]
[1747002985629,0.7834,2499.4,2498.7,0.7804]
[1747002985787,0.8322,2499.8,2498.8,2.778]
[1747002985986,4.00048005,2499.7,2498.9,8.35584]
[1747002986227,4.00034837,2499.8,2498.9,8.35584]
[1747002986424,4.00126043,2499.3,2498.9,8.35584]
[1747002986723,0.8322,2500.1,2498.7,0.7804]
[1747002986724,4.0006401,2499.6,2498.7,0.7804]
[1747002986929,4.00048005,2499.7,2498.7,8.7804]
[1747002987093,4.00192092,2498.8,2498.7,0.7804]
[1747002987294,4.00192092,2498.8,2498.7,8.7804]
[1747002987592,4.00235432,2498.6,2498.5,8.0]
[1747002988122,7.62453174,2499.4,2498.5,8.0]
[1747002988323,4.00173445,2499.0,2498.5,8.0]
[1747002988625,7.62453174,2499.4,2498.5,8.0]
[1747002988801,4.00180394,2498.9,2498.5,8.0]
[1747002989120,4.00180394,2498.9,2498.5,9.43749]
[1747002989321,4.00180394,2498.9,2498.5,8.0]
[1747002989527,4.00199284,2498.8,2498.6,0.11879137]
[1747002990116,4.00208108,2498.7,2498.6,0.11879137]
[1747002990425,4.00256163,2498.4,2498.3,3.5929]
[1747002990592,4.00256163,2498.4,2498.3,3.71183094]
[1747002990923,4.00256163,2498.4,2498.3,2.90193094]
[1747002991130,4.00256163,2498.4,2498.3,10.90193094]
[1747002991730,3.56683352,2499.1,2498.4,8.0]
[1747002991906,4.00170255,2499.0,2498.4,2.70539309]
[1747002992100,4.00170255,2499.0,2498.4,0.8152]
[1747002992327,2.80563352,2499.7,2498.5,0.12000103]
[1747002992637,4.00048005,2499.7,2498.7,8.8152]
[1747002992797,4.00048005,2499.7,2498.8,0.11939617]
[1747002992999,4.00048005,2499.7,2499.0,8.0]
[1747002993337,4.00111166,2499.4,2499.0,8.0]
[1747002993533,0.8172,2499.8,2499.2,0.8152]
[1747002993733,4.0012804,2499.2,2499.1,0.11939617]
[1747002994036,4.0012804,2499.2,2499.0,10.78]
[1747002994540,4.81755105,2499.8,2499.0,10.78]
[1747002994705,3.5432,2500.1,2499.0,12.3475661]
[1747002995051,4.00073232,2499.6,2499.2,0.8102]
[1747002995196,4.00112031,2499.3,2499.0,10.78]
[1747002995391,2.80563352,2500.0,2499.0,10.78]
[1747002995723,6.80570982,2500.0,2499.1,0.8102]
[1747002995909,4.0007554,2499.6,2499.1,2.24752]
[1747002996229,4.00121028,2499.3,2499.1,2.24752]
[1747002996434,4.00121028,2499.3,2499.1,0.8102]
[1747002996731,4.0012804,2499.2,2499.1,0.8102]
[1747002996938,4.00120497,2499.3,2499.1,8.8102]
[1747002997150,2.80563352,2500.0,2499.3,3.2848]
[1747002997301,2.80563352,2500.0,2499.3,8.0]
[1747002997302,4.00104469,2499.4,2499.3,8.0]
[1747002997705,4.00160064,2499.0,2498.9,2.783]
[1747002997945,4.00115264,2499.3,2498.9,2.783]
[1747002998115,4.00115264,2499.3,2499.0,8.0]
[1747002998322,4.0006401,2499.6,2499.0,8.0]
[1747002998523,4.00160064,2499.0,2498.9,2.783]
[1747002998718,4.00192092,2498.8,2498.7,10.782]
[1747002999020,4.00192092,2498.8,2498.7,8.0]
[1747003000620,4.00224125,2498.6,2498.5,8.8102]
[1747003001236,4.0012804,2499.2,2498.7,8.0]
[1747003001564,4.0012804,2499.2,2498.6,3.377]
[1747003001565,4.001426,2499.2,2498.5,8.8102]
[1747003001707,4.00152048,2499.1,2498.6,1.15922]
[1747003002042,4.00046563,2499.8,2498.7,0.85341868]
[1747003002340,4.00097609,2499.4,2498.8,0.7875]
[1747003002545,4.00038392,2499.8,2499.0,8.0]
[1747003002846,4.00122627,2499.3,2499.0,10.783]
[1747003003065,4.0008753,2499.5,2499.0,10.783]
[1747003003342,4.00098901,2499.4,2499.1,0.7875]
[1747003003740,4.00036483,2499.8,2499.1,0.7875]
[1747003004043,4.00111918,2499.4,2499.1,0.7875]
[1747003004209,4.0008771,2499.5,2499.1,0.7875]
[1747003004618,3.56293352,2500.0,2499.2,0.10608748]
[1747003004819,0.7573,2500.0,2499.2,0.10608748]
[1747003005342,4.00075065,2499.6,2499.2,0.10608748]
[1747003005557,4.00089084,2499.5,2499.2,0.10608748]
[1747003005872,4.00112031,2499.3,2499.2,0.10608748]
[1747003006024,4.00112031,2499.3,2499.2,8.10608748]
[1747003006969,4.00076916,2499.6,2499.2,9.27284623]
[1747003007426,4.00056008,2499.7,2499.2,9.27284623]
[1747003007637,4.00056008,2499.7,2499.6,8.0]
[1747003008031,4.00056008,2499.7,2499.6,8.10608748]
[1747003008859,6.8061936,2499.7,2499.6,8.10608748]
[1747003009358,8.1814936,2499.7,2499.6,0.10608748]
[1747003009724,4.0017874,2498.9,2498.7,0.7961]
[1747003010062,4.00192092,2498.8,2498.7,0.7961]
[1747003010222,4.00192092,2498.8,2498.7,0.89860648]
[1747003011060,4.00192092,2498.8,2498.7,0.10250648]
[1747003011250,4.00176774,2498.9,2498.5,3.5329]
[1747003011447,4.00210617,2498.7,2498.6,8.0]
[1747003011749,4.00210617,2498.7,2498.6,8.10450621]
[1747003011950,4.00210617,2498.7,2498.6,0.10450621]
[1747003012338,4.75960617,2498.7,2498.6,0.10450621]
[1747003012539,4.00304231,2498.1,2497.9,0.7569]
[1747003012741,4.00290195,2498.2,2497.2,17.178]
[1747003012742,4.00368338,2497.7,2497.2,17.178]
[1747003012944,0.7575,2498.2,2497.3,9.720309]
[1747003013267,4.00368414,2497.7,2497.3,2.7965]
[1747003013436,4.004004,2497.5,2497.4,8.0]
[1747003013631,0.765,2497.3,2497.1,0.05]
[1747003013839,8.12511854,2497.2,2497.1,0.05]
[1747003014038,4.7704474,2496.6,2496.4,0.528]
[1747003014233,13.15708092,2496.6,2496.4,0.528]
[1747003014496,4.0054474,2496.6,2496.4,0.528]
[1747003015974,6.81108092,2496.6,2496.4,0.528]
[1747003016587,4.55624974,2496.1,2495.7,0.005]
[1747003016747,16.15282829,2495.2,2495.1,0.05]
[1747003016949,7.60282829,2495.2,2495.1,0.05]
[1747003017349,4.79719477,2495.2,2495.1,0.05]
[1747003017751,7.62819477,2495.2,2495.1,0.05]
[1747003018154,4.00724652,2495.5,2495.1,0.05]
[1747003018355,4.00769477,2495.2,2495.1,8.05]
[1747003018855,4.00769477,2495.2,2495.1,0.05]
[1747003019152,4.00769477,2495.2,2495.1,8.05]
[1747003019850,4.0076855,2495.3,2495.1,8.17619015]
[1747003020180,4.00769477,2495.2,2495.1,0.17619015]
[1747003020381,5.39059477,2495.2,2495.1,0.17619015]
[1747003020563,4.55785539,2495.1,2495.0,10.0]
[1747003020754,7.36348891,2495.1,2495.0,10.0]
[1747003021342,4.00801603,2495.0,2494.1,0.05]
[1747003021543,9.67901603,2495.0,2494.1,0.05]
[1747003021858,4.55801603,2495.0,2494.1,0.05]
[1747003022166,4.84040157,2494.2,2494.1,0.05]
[1747003022504,13.31903509,2494.2,2494.1,0.05]
[1747003022694,4.00867017,2494.6,2494.1,0.05]
[1747003022695,0.7929,2494.6,2494.1,0.05]
[1747003022843,0.7929,2495.0,2494.1,0.05]
[1747003023040,10.19,2495.4,2494.1,0.05]
[1747003023041,3.59853352,2495.4,2494.2,0.10957228]
[1747003023246,4.00780091,2495.2,2494.3,0.84148984]
[1747003023545,9.28153352,2495.7,2494.4,1.00458516]
[1747003023746,9.28153352,2495.7,2494.6,8.0]
[1747003024095,9.28153352,2495.7,2494.7,0.10667992]
[1747003025345,4.00750758,2495.4,2494.7,0.10667992]
[1747003025546,4.00705241,2495.6,2494.7,0.10667992]
[1747003025855,0.8095,2496.5,2495.7,8.0]
[1747003026081,3.43363251,2496.5,2495.8,0.1043018]
[1747003026379,4.00630115,2496.1,2495.8,0.1043018]
[1747003026594,4.0057683,2496.4,2495.5,0.812]
[1747003026759,4.00624974,2496.1,2495.9,0.10420856]
[1747003027085,4.00674482,2495.8,2495.5,0.812]
[1747003027296,4.00769477,2495.2,2494.5,0.7659]
[1747003027450,2.80563352,2495.4,2494.5,0.7659]
[1747003028179,4.0080104,2495.1,2494.6,0.10420856]
[1747003028484,2.80563352,2495.7,2494.6,0.14429261]
[1747003028787,4.00812609,2495.0,2494.6,0.10420856]
[1747003028948,4.00813302,2495.0,2494.6,0.10420856]
[1747003029483,4.0084245,2494.8,2494.6,0.10420856]
[1747003029655,2.80563352,2495.4,2494.6,0.10420856]
[1747003029984,4.00786291,2495.1,2494.6,0.10420856]
[1747003030285,3.35563352,2495.7,2494.6,0.10420856]
[1747003030286,4.00826554,2494.9,2494.6,0.10420856]
[1747003030483,4.00849801,2494.7,2494.6,0.10420856]
[1747003030647,4.00905522,2494.4,2494.1,0.8677]
[1747003030852,4.00930157,2494.2,2494.1,0.05]
[1747003032461,4.00917764,2494.3,2494.1,0.05]
[1747003032802,2.832,2494.7,2494.1,0.05]
[1747003033124,4.00921221,2494.3,2494.1,0.05]
[1747003033251,3.61033352,2495.3,2494.7,14.858658]
[1747003033446,4.00783827,2495.2,2494.4,0.8087]
[1747003033648,4.00716533,2495.6,2494.5,40.23213542]
[1747003033854,4.00776459,2495.2,2494.7,8.8087]
[1747003034164,6.81220429,2495.9,2494.7,8.8087]
[1747003034439,4.0067313,2495.8,2494.7,8.8087]
[1747003034579,4.00815404,2495.0,2494.7,8.8087]
[1747003034894,4.00817668,2494.9,2494.8,0.10635341]
[1747003035245,4.0085816,2494.7,2494.1,0.8051]
[1747003035446,0.8288,2495.3,2494.2,0.10635341]
[1747003035695,3.60043352,2495.6,2494.4,0.7604]
[1747003035987,4.00785759,2495.1,2494.5,8.0]
[1747003036383,0.7948,2495.6,2494.6,0.10635341]
[1747003036687,2.833,2495.7,2494.6,0.10635341]
[1747003036688,4.00784236,2495.2,2494.7,0.7551]
[1747003036886,4.00705241,2495.6,2494.7,0.7551]
[1747003037184,2.833,2495.7,2494.7,0.7551]
[1747003037345,2.833,2496.1,2494.9,0.7848]
[1747003037546,4.00641025,2496.0,2494.9,0.7848]
[1747003037786,4.00725439,2495.5,2494.9,0.7848]
[1747003037987,4.00657077,2495.9,2495.0,0.10635341]
[1747003038150,4.00713318,2495.6,2495.0,0.10635341]
[1747003038493,4.00650781,2496.0,2495.6,4.007133]
[1747003038682,17.255,2496.5,2495.2,9.9923]
[1747003038998,0.7634,2496.6,2495.4,0.7723]
[1747003039194,0.7634,2496.6,2495.3,1.26007065]
[1747003039195,4.00560785,2496.5,2495.5,1.26006316]
[1747003039397,4.00611003,2496.2,2495.6,0.7827]
[1747003039578,4.00634836,2496.1,2495.8,8.0]
[1747003039783,4.00585188,2496.4,2496.2,8.0]
[1747003039983,4.00528697,2496.7,2495.8,8.0]
[1747003040187,4.00657077,2495.9,2495.8,8.0]
[1747003040363,4.0057683,2496.4,2495.3,8.8221]
[1747003040364,4.00723055,2495.5,2495.3,8.8221]
[1747003040551,4.0071709,2495.6,2495.3,8.8221]
[1747003040982,4.0071709,2495.6,2494.7,0.8221]
[1747003040983,4.00795994,2495.1,2494.7,0.8221]
[1747003041147,0.55,2495.5,2494.7,0.8221]
[1747003041489,4.00729253,2495.5,2494.7,0.8221]
[1747003041782,4.00746404,2495.4,2494.7,0.8221]
[1747003041994,4.00815525,2495.0,2494.7,0.8221]
[1747003042292,4.00830033,2494.9,2494.6,2.832]
[1747003042492,4.00721298,2495.5,2494.7,8.0]
[1747003042811,0.55,2495.5,2494.6,8.0]
[1747003043008,4.00816336,2495.0,2494.6,8.0]
[1747003043304,4.00813194,2495.0,2494.6,8.0]
[1747003043593,1.3327,2495.3,2494.6,8.0]
[1747003043772,4.00846196,2494.8,2494.6,8.0]
[1747003044110,4.00910683,2494.4,2494.1,0.8721]
[1747003044312,9.03170742,2494.2,2494.1,0.05]
[1747003044492,9.58170742,2494.2,2494.1,0.05]
[1747003044824,4.77400157,2494.2,2494.1,0.05]
[1747003045112,4.00883511,2494.5,2494.1,0.05]
[1747003045278,0.7647,2494.6,2494.1,0.05]
[1747003045474,4.00930157,2494.2,2494.1,0.05]
[1747003045806,4.55930157,2494.2,2494.1,0.05]
[1747003045977,5.36350157,2494.2,2494.1,0.05]
[1747003047310,4.00930157,2494.2,2494.1,0.05]
[1747003047963,4.00930157,2494.2,2494.1,0.15001047]
[1747003048365,4.00930157,2494.2,2494.1,0.05]
[1747003048968,0.7849,2494.8,2494.2,3.281]
[1747003049185,0.7849,2494.8,2494.1,0.05]
[1747003049389,4.00898011,2494.4,2494.3,0.10001047]
[1747003049699,0.7645,2494.3,2493.2,0.751]
[1747003050201,0.7645,2494.3,2493.5,0.10001047]
[1747003050396,4.01026628,2493.6,2493.5,0.10001047]
[1747003050601,0.7645,2494.3,2493.2,0.751]
[1747003050602,4.01017839,2493.7,2493.2,0.751]
[1747003050779,4.01017839,2493.7,2493.5,0.10001047]
[1747003051204,4.01017839,2493.7,2493.2,0.751]
[1747003051401,4.0086587,2494.6,2493.2,0.751]
[1747003051568,4.00995251,2493.8,2493.7,8.0]
[1747003052172,4.00995251,2493.8,2493.7,8.10001047]
[1747003052563,4.00995251,2493.8,2493.7,0.10001047]
[1747003053084,4.01042711,2493.5,2492.5,0.8128]
[1747003053278,5.32852711,2493.5,2492.5,0.8128]
[1747003053479,15.51852711,2493.5,2492.1,0.8253]
[1747003053692,4.01042711,2493.5,2492.7,0.7753]
[1747003054080,6.96331544,2493.6,2492.7,0.7753]
[1747003054407,4.01042711,2493.5,2492.7,0.7753]
[1747003054606,0.7512,2493.9,2493.0,8.0]
[1747003054772,2.953,2494.3,2493.4,0.787]
[1747003054773,3.7042,2494.3,2493.4,0.787]
[1747003054979,4.01008387,2493.8,2493.5,0.10001047]
[1747003055280,4.01026628,2493.6,2493.5,0.10001047]
[1747003055478,3.7042,2494.3,2493.4,0.005]
[1747003055681,4.0099987,2493.8,2493.4,0.005]
[1747003055881,4.00981739,2493.9,2493.4,0.005]
[1747003056100,4.01026628,2493.6,2493.5,0.8152]
[1747003056299,3.7042,2494.3,2493.7,8.0]
[1747003056504,3.7042,2494.3,2493.5,0.8152]
[1747003056505,4.01002774,2493.8,2493.5,0.8152]
[1747003056808,4.01013486,2493.7,2493.5,0.8152]
[1747003057018,4.00949605,2494.1,2493.5,0.8152]
[1747003057317,4.00987734,2493.9,2493.5,0.8152]
[1747003057610,4.01006212,2493.8,2493.5,0.8152]
[1747003057776,4.01010861,2493.7,2493.5,0.8152]
[1747003058301,4.0101249,2493.7,2493.4,0.005]
[1747003058501,4.01005985,2493.8,2493.4,0.005]
[1747003058914,0.7512,2494.3,2493.4,0.005]
[1747003059111,4.0094245,2494.2,2493.5,0.7708]
[1747003059422,2.953,2495.0,2494.4,8.0]
[1747003059622,4.00825565,2494.9,2494.4,0.8197]
[1747003059829,4.00878588,2494.6,2494.4,0.8197]
[1747003060132,4.0088194,2494.5,2494.4,0.8197]
[1747003060472,4.0087075,2494.6,2494.4,0.8197]
[1747003060676,4.00857455,2494.7,2494.4,0.8197]
[1747003060927,4.00843004,2494.8,2494.4,0.8197]
[1747003061129,3.0,2495.1,2494.4,0.8197]
[1747003061328,3.0,2495.1,2494.1,0.8176]
[1747003061531,4.00817668,2494.9,2493.6,0.8176]
[1747003061675,4.00956433,2494.1,2493.6,0.8176]
[1747003062030,4.00849801,2494.7,2493.6,0.8176]
[1747003062190,4.00933983,2494.2,2493.6,0.8176]
[1747003062392,4.0093026,2494.2,2493.6,1.49596]
[1747003062595,2.954,2494.9,2493.6,1.49596]
[1747003062794,4.55849801,2494.7,2493.7,0.10290211]
[1747003063080,4.00972111,2494.0,2493.7,0.10290211]
[1747003063277,4.00902585,2494.4,2493.7,0.10290211]
[1747003063783,4.00986436,2493.9,2493.7,0.10290211]
[1747003063978,4.00914084,2494.3,2493.7,0.10290211]
[1747003063979,4.00994466,2493.8,2493.7,0.10290211]
[1747003064549,4.00968206,2494.0,2493.8,4.009944]
[1747003064726,4.00978914,2493.9,2493.7,0.10290211]
[1747003064896,4.00978914,2493.9,2493.5,8.0]
[1747003065298,4.00946896,2494.1,2493.5,8.0]
[1747003065543,4.00919419,2494.3,2493.6,0.8075]
[1747003065780,4.0093435,2494.2,2493.6,0.84760303]
[1747003066042,4.0093435,2494.2,2493.6,0.8075]
[1747003066242,4.78870346,2494.7,2493.8,8.0]
[1747003066446,4.00939023,2494.2,2493.8,8.0]
[1747003066740,4.00930157,2494.2,2493.8,8.0]
[1747003066898,4.0094624,2494.1,2493.9,2.018745]
[1747003067099,4.0094624,2494.1,2493.8,8.0]
[1747003067294,2.81057338,2494.4,2493.4,0.005]
[1747003067627,4.01042711,2493.5,2493.4,0.005]
[1747003067833,6.82100049,2493.5,2493.4,0.005]
[1747003068032,8.14170049,2493.5,2493.4,0.005]
[1747003068235,0.6269,2491.1,2490.0,2.9842515]
[1747003068453,4.01590297,2490.1,2490.0,2.9842515]
[1747003069103,4.01394874,2491.4,2490.1,0.8074]
[1747003069305,0.55,2491.0,2490.1,0.8074]
[1747003069505,4.01489461,2490.8,2490.1,9.44686515]
[1747003069742,4.01388689,2491.4,2490.2,2.43557523]
[1747003069917,4.01389643,2491.4,2490.1,1.44686515]
[1747003070129,0.7707,2491.7,2490.1,4.56386515]
[1747003070440,4.01512674,2490.6,2490.1,4.56386515]
[1747003070853,4.01590297,2490.1,2490.0,2.9842515]
[1747003071061,13.81617635,2490.1,2490.0,2.9842515]
[1747003071209,15.83388777,2490.1,2490.0,2.9842515]
[1747003071409,9.06488777,2490.1,2490.0,2.9842515]
[1747003071724,9.06488777,2490.1,2489.1,0.05]
[1747003071725,4.01731394,2489.3,2489.1,0.05]
[1747003071932,7.046,2490.1,2489.1,0.05]
[1747003072256,0.7707,2490.2,2489.2,0.09236653]
[1747003072461,4.01735497,2489.2,2489.1,0.05]
[1747003072952,4.01733541,2489.3,2489.1,0.05]
[1747003073114,4.01629958,2489.9,2489.1,8.05]
[1747003073448,0.7707,2490.0,2489.1,8.05]
[1747003073651,1.3976,2491.1,2489.3,0.8074]